[Event "Titled Tuesday Blitz January 10 Early 2023"]
[White "Starozhilov, Leonid"]
[Black "Turzo, Attila"]
[WhiteFideId "14106752"]
[BlackFideId "704954"]
[WhiteElo "2313"]
[BlackElo "2279"]
[Result "0-1"]
[Round "10"]
[TimeControl "180+2"]
[Date "2023.01.10"]
[WhiteClock "0:00:03"]
[BlackClock "0:00:05"]

1. b3 {[%clk 0:03:00]}  d5 {[%clk 0:02:57]} 2. Bb2 {[%clk 0:03:00]}  e6 {[%clk 0:02:56]} 3. Nf3 {[%clk 0:02:58]}  Nf6 {[%clk 0:02:56]} 4. c4 {[%clk 0:02:57]}  Be7 {[%clk 0:02:56]} 5. g3 {[%clk 0:02:58]}  b6 {[%clk 0:02:56]} 6. Bg2 {[%clk 0:02:58]}  Bb7 {[%clk 0:02:57]} 7. O-O {[%clk 0:02:58]}  O-O {[%clk 0:02:57]} 8. cxd5 {[%clk 0:02:55]}  Nxd5 {[%clk 0:02:50]} 9. d4 {[%clk 0:02:52]}  Nd7 {[%clk 0:02:49]} 10. Nbd2 {[%clk 0:02:47]}  c5 {[%clk 0:02:49]} 11. Rc1 {[%clk 0:02:45]}  Rc8 {[%clk 0:02:48]} 12. e3 {[%clk 0:02:37]}  cxd4 {[%clk 0:02:47]} 13. Nxd4 {[%clk 0:02:27]}  Rxc1 {[%clk 0:02:44]} 14. Qxc1 {[%clk 0:02:26]}  Qa8 {[%clk 0:02:44]} 15. Qa1 {[%clk 0:02:22]}  Rc8 {[%clk 0:02:35]} 16. Nb5 {[%clk 0:02:13]}  f6 {[%clk 0:02:28]} 17. Nc4 {[%clk 0:02:11]}  Qb8 {[%clk 0:02:12]} 18. Rd1 {[%clk 0:02:06]}  a6 {[%clk 0:02:11]} 19. Nc3 {[%clk 0:02:00]}  b5 {[%clk 0:01:48]} 20. Nxd5 {[%clk 0:01:49]}  Bxd5 {[%clk 0:01:43]} 21. Bxd5 {[%clk 0:01:42]}  exd5 {[%clk 0:01:44]} 22. Rxd5 {[%clk 0:01:15]}  Nc5 {[%clk 0:00:38]} 23. Nd2 {[%clk 0:01:15]}  Qb7 {[%clk 0:00:37]} 24. Rd4 {[%clk 0:01:09]}  Ne6 {[%clk 0:00:34]} 25. Rd3 {[%clk 0:00:59]}  Ng5 {[%clk 0:00:33]} 26. e4 {[%clk 0:00:45]}  Nxe4 {[%clk 0:00:33]} 27. Nxe4 {[%clk 0:00:33]}  Qxe4 {[%clk 0:00:34]} 28. Re3 {[%clk 0:00:33]}  Qb7 {[%clk 0:00:34]} 29. Qe1 {[%clk 0:00:32]}  Kf7 {[%clk 0:00:29]} 30. Bd4 {[%clk 0:00:24]}  Rd8 {[%clk 0:00:26]} 31. Re4 {[%clk 0:00:19]}  Bf8 {[%clk 0:00:24]} 32. h4 {[%clk 0:00:13]}  Qd5 {[%clk 0:00:22]} 33. Qe2 {[%clk 0:00:12]}  h5 {[%clk 0:00:18]} 34. Bc3 {[%clk 0:00:06]}  Qd1+ {[%clk 0:00:17]} 35. Qxd1 {[%clk 0:00:05]}  Rxd1+ {[%clk 0:00:18]} 36. Kg2 {[%clk 0:00:05]}  Rd3 {[%clk 0:00:17]} 37. Ba5 {[%clk 0:00:03]}  Bd6 {[%clk 0:00:15]} 38. Re2 {[%clk 0:00:03]}  Be5 {[%clk 0:00:14]} 39. Rc2 {[%clk 0:00:03]}  Rd6 {[%clk 0:00:11]} 40. Bb4 {[%clk 0:00:02]}  Re6 {[%clk 0:00:10]} 41. Bd2 {[%clk 0:00:02]}  Bd4 {[%clk 0:00:09]} 42. Kf3 {[%clk 0:00:03]}  Kg6 {[%clk 0:00:07]} 43. a4 {[%clk 0:00:03]}  bxa4 {[%clk 0:00:06]} 44. bxa4 {[%clk 0:00:04]}  Kf5 {[%clk 0:00:07]} 45. Bf4 {[%clk 0:00:04]}  g5 {[%clk 0:00:07]} 46. hxg5 {[%clk 0:00:03]}  fxg5 {[%clk 0:00:08]} 47. Bd2 {[%clk 0:00:03]}  g4+ {[%clk 0:00:07]} 48. Kg2 {[%clk 0:00:04]}  Re2 {[%clk 0:00:07]} 49. Ra2 {[%clk 0:00:02]}  Rxf2+ {[%clk 0:00:06]} 50. Kh1 {[%clk 0:00:03]}  Be3 {[%clk 0:00:05]} 0-1


[Site "https://www.chess.com"]

[Event "Titled Tuesday Blitz January 10 Early 2023"]
[White "Florescu, Codrut-Constantin"]
[Black "Sattarov, Bobir"]
[WhiteFideId "1202200"]
[BlackFideId "14203081"]
[WhiteElo "2259"]
[BlackElo "2366"]
[Result "1-0"]
[Round "10"]
[TimeControl "180+2"]
[Date "2023.01.10"]
[WhiteClock "0:00:40"]
[BlackClock "0:00:07"]

1. d4 {[%clk 0:03:00]}  Nf6 {[%clk 0:02:58]} 2. c4 {[%clk 0:03:00]}  e6 {[%clk 0:02:58]} 3. Nf3 {[%clk 0:03:00]}  d5 {[%clk 0:02:58]} 4. Nc3 {[%clk 0:02:59]}  Bb4 {[%clk 0:02:57]} 5. Qa4+ {[%clk 0:02:55]}  Nc6 {[%clk 0:02:56]} 6. e3 {[%clk 0:02:56]}  O-O {[%clk 0:02:55]} 7. Bd2 {[%clk 0:02:56]}  Bd6 {[%clk 0:02:51]} 8. Bd3 {[%clk 0:02:53]}  a6 {[%clk 0:02:49]} 9. Qc2 {[%clk 0:02:52]}  Nb4 {[%clk 0:02:48]} 10. Qb1 {[%clk 0:02:52]}  Nxd3+ {[%clk 0:02:47]} 11. Qxd3 {[%clk 0:02:53]}  dxc4 {[%clk 0:02:48]} 12. Qxc4 {[%clk 0:02:53]}  b5 {[%clk 0:02:48]} 13. Qe2 {[%clk 0:02:53]}  Bb7 {[%clk 0:02:44]} 14. O-O {[%clk 0:02:52]}  c5 {[%clk 0:02:40]} 15. dxc5 {[%clk 0:02:50]}  Bxc5 {[%clk 0:02:41]} 16. Rac1 {[%clk 0:02:47]}  Rc8 {[%clk 0:02:40]} 17. Rfd1 {[%clk 0:02:46]}  Qe7 {[%clk 0:02:31]} 18. a3 {[%clk 0:02:45]}  h6 {[%clk 0:02:23]} 19. b4 {[%clk 0:02:45]}  Ba7 {[%clk 0:02:23]} 20. Be1 {[%clk 0:02:35]}  Rc4 {[%clk 0:02:14]} 21. Nb1 {[%clk 0:02:34]}  Rfc8 {[%clk 0:02:13]} 22. Rxc4 {[%clk 0:02:34]}  bxc4 {[%clk 0:02:08]} 23. Nc3 {[%clk 0:02:32]}  Ne4 {[%clk 0:02:04]} 24. Nxe4 {[%clk 0:02:30]}  Bxe4 {[%clk 0:02:05]} 25. Bc3 {[%clk 0:02:31]}  Bd3 {[%clk 0:02:04]} 26. Qb2 {[%clk 0:02:30]}  f6 {[%clk 0:02:03]} 27. Ne1 {[%clk 0:02:26]}  Be4 {[%clk 0:01:56]} 28. Qd2 {[%clk 0:02:11]}  e5 {[%clk 0:01:50]} 29. Qd6 {[%clk 0:02:02]}  Qb7 {[%clk 0:01:45]} 30. Qe6+ {[%clk 0:01:56]}  Kh7 {[%clk 0:01:44]} 31. Rd7 {[%clk 0:01:55]}  Rc7 {[%clk 0:01:38]} 32. Rd8 {[%clk 0:01:55]}  Qc6 {[%clk 0:01:28]} 33. Qg8+ {[%clk 0:01:52]}  Kg6 {[%clk 0:01:28]} 34. Qf8 {[%clk 0:01:44]}  Rf7 {[%clk 0:01:05]} 35. Qd6 {[%clk 0:01:35]}  Bb6 {[%clk 0:00:48]} 36. Qxc6 {[%clk 0:01:33]}  Bxc6 {[%clk 0:00:49]} 37. Rd6 {[%clk 0:01:33]}  Rc7 {[%clk 0:00:49]} 38. Bxe5 {[%clk 0:01:30]}  Kf5 {[%clk 0:00:42]} 39. Bc3 {[%clk 0:01:29]}  Ba7 {[%clk 0:00:42]} 40. Kf1 {[%clk 0:01:28]}  h5 {[%clk 0:00:35]} 41. Ke2 {[%clk 0:01:28]}  h4 {[%clk 0:00:35]} 42. f3 {[%clk 0:01:26]}  Bb8 {[%clk 0:00:33]} 43. Nc2 {[%clk 0:01:20]}  Kg6 {[%clk 0:00:30]} 44. Rd8 {[%clk 0:01:16]}  Rb7 {[%clk 0:00:29]} 45. Nd4 {[%clk 0:01:11]}  Bd7 {[%clk 0:00:25]} 46. f4 {[%clk 0:01:07]}  Kf7 {[%clk 0:00:25]} 47. Rh8 {[%clk 0:01:03]}  g5 {[%clk 0:00:25]} 48. g3 {[%clk 0:00:57]}  h3 {[%clk 0:00:23]} 49. f5 {[%clk 0:00:55]}  g4 {[%clk 0:00:23]} 50. e4 {[%clk 0:00:54]}  Be5 {[%clk 0:00:21]} 51. Kd2 {[%clk 0:00:50]}  Rb8 {[%clk 0:00:14]} 52. Rh7+ {[%clk 0:00:49]}  Ke8 {[%clk 0:00:14]} 53. Ne2 {[%clk 0:00:46]}  Rd8 {[%clk 0:00:12]} 54. Rh8+ {[%clk 0:00:42]}  Ke7 {[%clk 0:00:12]} 55. Rxd8 {[%clk 0:00:43]}  Kxd8 {[%clk 0:00:13]} 56. Bxe5 {[%clk 0:00:43]}  fxe5 {[%clk 0:00:13]} 57. Nc3 {[%clk 0:00:42]}  Bc6 {[%clk 0:00:13]} 58. Ke3 {[%clk 0:00:42]}  Ke7 {[%clk 0:00:13]} 59. a4 {[%clk 0:00:42]}  Kf6 {[%clk 0:00:13]} 60. b5 {[%clk 0:00:42]}  axb5 {[%clk 0:00:14]} 61. axb5 {[%clk 0:00:42]}  Bb7 {[%clk 0:00:14]} 62. Na4 {[%clk 0:00:42]}  Ke7 {[%clk 0:00:12]} 63. Nc5 {[%clk 0:00:42]}  Ba8 {[%clk 0:00:07]} 64. b6 {[%clk 0:00:41]}  c3 {[%clk 0:00:07]} 65. b7 {[%clk 0:00:41]}  c2 {[%clk 0:00:07]} 66. Kd2 {[%clk 0:00:41]}  Bxb7 {[%clk 0:00:07]} 67. Nxb7 {[%clk 0:00:40]} 1-0


[Site "https://www.chess.com"]

[Event "Titled Tuesday Blitz January 10 Early 2023"]
[White "Barria Zuniga, Daniel"]
[Black "Pein, Jonathan"]
[WhiteFideId "3400816"]
[BlackFideId "417092"]
[WhiteElo "2341"]
[BlackElo "2265"]
[Result "1-0"]
[Round "10"]
[TimeControl "180+2"]
[Date "2023.01.10"]
[WhiteClock "0:01:12"]
[BlackClock "0:00:52"]

1. d4 {[%clk 0:03:00]}  d6 {[%clk 0:02:57]} 2. Nf3 {[%clk 0:02:59]}  Nf6 {[%clk 0:02:56]} 3. c4 {[%clk 0:03:00]}  g6 {[%clk 0:02:56]} 4. Nc3 {[%clk 0:02:59]}  Bg7 {[%clk 0:02:57]} 5. e4 {[%clk 0:03:00]}  O-O {[%clk 0:02:57]} 6. Be2 {[%clk 0:03:00]}  e5 {[%clk 0:02:58]} 7. d5 {[%clk 0:03:00]}  a5 {[%clk 0:02:57]} 8. Bg5 {[%clk 0:03:00]}  h6 {[%clk 0:02:57]} 9. Bh4 {[%clk 0:03:00]}  Na6 {[%clk 0:02:56]} 10. Nd2 {[%clk 0:03:00]}  Nc5 {[%clk 0:02:48]} 11. O-O {[%clk 0:03:00]}  Bd7 {[%clk 0:02:48]} 12. Qc2 {[%clk 0:02:58]}  h5 {[%clk 0:02:29]} 13. Bg5 {[%clk 0:02:43]}  Qe8 {[%clk 0:02:26]} 14. b3 {[%clk 0:02:38]}  Kh7 {[%clk 0:02:19]} 15. a3 {[%clk 0:02:33]}  Ng8 {[%clk 0:01:52]} 16. b4 {[%clk 0:02:26]}  axb4 {[%clk 0:01:52]} 17. axb4 {[%clk 0:02:27]}  Na4 {[%clk 0:01:52]} 18. Nb5 {[%clk 0:02:27]}  Bxb5 {[%clk 0:01:19]} 19. cxb5 {[%clk 0:02:28]}  Nb6 {[%clk 0:01:17]} 20. Qxc7 {[%clk 0:02:27]}  Rxa1 {[%clk 0:01:17]} 21. Rxa1 {[%clk 0:02:24]}  Nd7 {[%clk 0:01:16]} 22. Qxd6 {[%clk 0:02:10]}  f5 {[%clk 0:01:17]} 23. f3 {[%clk 0:02:08]}  Ngf6 {[%clk 0:01:15]} 24. b6 {[%clk 0:01:58]}  Qc8 {[%clk 0:01:15]} 25. Qc7 {[%clk 0:01:56]}  f4 {[%clk 0:01:05]} 26. Nc4 {[%clk 0:01:43]}  Nxd5 {[%clk 0:01:01]} 27. exd5 {[%clk 0:01:37]}  e4 {[%clk 0:01:01]} 28. Nd6 {[%clk 0:01:28]}  Bd4+ {[%clk 0:00:55]} 29. Kf1 {[%clk 0:01:26]}  Qxc7 {[%clk 0:00:51]} 30. bxc7 {[%clk 0:01:25]}  Bxa1 {[%clk 0:00:52]} 31. c8=Q {[%clk 0:01:20]}  Rxc8 {[%clk 0:00:51]} 32. Nxc8 {[%clk 0:01:20]}  exf3 {[%clk 0:00:52]} 33. Bxf3 {[%clk 0:01:12]}  Bc3 {[%clk 0:00:52]} 1-0


[Site "https://www.chess.com"]

[Event "Titled Tuesday Blitz January 10 Early 2023"]
[White "Oro, Faustino"]
[Black "Ortega Ruiz, Jose Miguel"]
[WhiteFideId "20000197"]
[BlackFideId "2209713"]
[WhiteElo "2269"]
[BlackElo "2351"]
[Result "0-1"]
[Round "10"]
[TimeControl "180+2"]
[Date "2023.01.10"]
[WhiteClock "0:00:02"]
[BlackClock "0:01:15"]

1. e4 {[%clk 0:03:00]}  g6 {[%clk 0:03:00]} 2. d4 {[%clk 0:03:00]}  Bg7 {[%clk 0:03:00]} 3. Nc3 {[%clk 0:03:01]}  d6 {[%clk 0:03:01]} 4. f4 {[%clk 0:03:00]}  e5 {[%clk 0:02:59]} 5. Nf3 {[%clk 0:02:38]}  exd4 {[%clk 0:02:51]} 6. Nxd4 {[%clk 0:02:38]}  Nc6 {[%clk 0:02:51]} 7. Be3 {[%clk 0:02:24]}  Nf6 {[%clk 0:02:45]} 8. Be2 {[%clk 0:02:19]}  Qe7 {[%clk 0:02:44]} 9. Bf3 {[%clk 0:02:04]}  O-O {[%clk 0:02:44]} 10. O-O {[%clk 0:02:04]}  Nxd4 {[%clk 0:02:31]} 11. Bxd4 {[%clk 0:02:03]}  c6 {[%clk 0:02:31]} 12. Qd2 {[%clk 0:02:01]}  Nd7 {[%clk 0:02:31]} 13. Rae1 {[%clk 0:01:57]}  Bxd4+ {[%clk 0:02:30]} 14. Qxd4 {[%clk 0:01:58]}  Rd8 {[%clk 0:02:29]} 15. Qf2 {[%clk 0:01:37]}  Nb6 {[%clk 0:02:27]} 16. b3 {[%clk 0:01:32]}  Qf6 {[%clk 0:02:24]} 17. Qd2 {[%clk 0:01:24]}  Be6 {[%clk 0:02:20]} 18. a4 {[%clk 0:01:20]}  d5 {[%clk 0:02:18]} 19. e5 {[%clk 0:01:20]}  Qe7 {[%clk 0:02:16]} 20. Ne2 {[%clk 0:01:15]}  d4 {[%clk 0:02:16]} 21. g4 {[%clk 0:01:01]}  Qc5 {[%clk 0:02:10]} 22. Kg2 {[%clk 0:00:56]}  Bd5 {[%clk 0:02:08]} 23. Ng3 {[%clk 0:00:56]}  Bxf3+ {[%clk 0:02:08]} 24. Rxf3 {[%clk 0:00:56]}  Nd5 {[%clk 0:02:08]} 25. Ne4 {[%clk 0:00:57]}  Qe7 {[%clk 0:02:04]} 26. f5 {[%clk 0:00:41]}  Ne3+ {[%clk 0:02:02]} 27. Kh1 {[%clk 0:00:39]}  Qxe5 {[%clk 0:01:58]} 28. Ng3 {[%clk 0:00:29]}  Qd5 {[%clk 0:01:54]} 29. Qf2 {[%clk 0:00:15]}  Nxg4 {[%clk 0:01:54]} 30. Qe2 {[%clk 0:00:14]}  Re8 {[%clk 0:01:49]} 31. Ne4 {[%clk 0:00:04]}  gxf5 {[%clk 0:01:46]} 32. Rf4 {[%clk 0:00:05]}  Kh8 {[%clk 0:01:34]} 33. Qg2 {[%clk 0:00:02]}  Ne3 {[%clk 0:01:31]} 34. Qg5 {[%clk 0:00:02]}  Re6 {[%clk 0:01:23]} 35. Ref1 {[%clk 0:00:01]}  fxe4 {[%clk 0:01:19]} 36. Rg1 {[%clk 0:00:01]}  Qxg5 {[%clk 0:01:17]} 37. Rxg5 {[%clk 0:00:02]}  Nd5 {[%clk 0:01:15]} 0-1


[Site "https://www.chess.com"]

[Event "Titled Tuesday Blitz January 10 Early 2023"]
[White "Jakubowski, Krzysztof"]
[Black "Sai Han Thiha"]
[WhiteFideId "1112848"]
[BlackFideId "13012290"]
[WhiteElo "2486"]
[BlackElo "2070"]
[Result "1-0"]
[Round "10"]
[TimeControl "180+2"]
[Date "2023.01.10"]
[WhiteClock "0:00:57"]
[BlackClock "0:00:03"]

1. e4 {[%clk 0:02:57]}  c6 {[%clk 0:02:59]} 2. d4 {[%clk 0:02:53]}  d5 {[%clk 0:03:00]} 3. exd5 {[%clk 0:02:53]}  cxd5 {[%clk 0:03:01]} 4. Bd3 {[%clk 0:02:53]}  Nc6 {[%clk 0:03:01]} 5. c3 {[%clk 0:02:53]}  Nf6 {[%clk 0:03:01]} 6. Bf4 {[%clk 0:02:50]}  Bg4 {[%clk 0:03:02]} 7. Qb3 {[%clk 0:02:49]}  Qd7 {[%clk 0:03:02]} 8. Nd2 {[%clk 0:02:48]}  e6 {[%clk 0:03:03]} 9. Ngf3 {[%clk 0:02:48]}  Bd6 {[%clk 0:03:03]} 10. Bxd6 {[%clk 0:02:47]}  Qxd6 {[%clk 0:03:04]} 11. O-O {[%clk 0:02:46]}  O-O {[%clk 0:03:04]} 12. Rfe1 {[%clk 0:02:45]}  Ne7 {[%clk 0:02:31]} 13. Ne5 {[%clk 0:02:38]}  Bf5 {[%clk 0:02:31]} 14. Re2 {[%clk 0:02:28]}  b5 {[%clk 0:01:57]} 15. a3 {[%clk 0:02:14]}  Rab8 {[%clk 0:01:51]} 16. Qb4 {[%clk 0:01:51]}  Qc7 {[%clk 0:01:45]} 17. Bxf5 {[%clk 0:01:50]}  Nxf5 {[%clk 0:01:44]} 18. Nd3 {[%clk 0:01:49]}  Nd7 {[%clk 0:01:32]} 19. Nb3 {[%clk 0:01:45]}  Nd6 {[%clk 0:00:59]} 20. a4 {[%clk 0:01:31]}  bxa4 {[%clk 0:00:29]} 21. Qxa4 {[%clk 0:01:31]}  Nb6 {[%clk 0:00:16]} 22. Qa5 {[%clk 0:01:30]}  Ndc4 {[%clk 0:00:12]} 23. Qxa7 {[%clk 0:01:18]}  Qxa7 {[%clk 0:00:12]} 24. Rxa7 {[%clk 0:01:17]}  Nc8 {[%clk 0:00:13]} 25. Rc7 {[%clk 0:01:05]}  Rxb3 {[%clk 0:00:13]} 26. Nc5 {[%clk 0:01:06]}  Rxb2 {[%clk 0:00:13]} 27. Rxb2 {[%clk 0:01:05]}  Nxb2 {[%clk 0:00:14]} 28. Nd7 {[%clk 0:01:06]}  Rd8 {[%clk 0:00:14]} 29. Ne5 {[%clk 0:01:06]}  Nd6 {[%clk 0:00:14]} 30. Nc6 {[%clk 0:01:04]}  Re8 {[%clk 0:00:12]} 31. f3 {[%clk 0:01:03]}  Nbc4 {[%clk 0:00:11]} 32. Kf2 {[%clk 0:01:01]}  g6 {[%clk 0:00:11]} 33. h4 {[%clk 0:01:01]}  h5 {[%clk 0:00:11]} 34. g4 {[%clk 0:01:01]}  Kg7 {[%clk 0:00:11]} 35. Kg3 {[%clk 0:01:00]}  hxg4 {[%clk 0:00:08]} 36. Kxg4 {[%clk 0:01:01]}  Ne3+ {[%clk 0:00:08]} 37. Kf4 {[%clk 0:01:01]}  Nef5 {[%clk 0:00:07]} 38. Ne5 {[%clk 0:01:00]}  Nxh4 {[%clk 0:00:04]} 39. Rd7 {[%clk 0:01:00]}  Nhf5 {[%clk 0:00:04]} 40. Kg4 {[%clk 0:01:00]}  Re7 {[%clk 0:00:05]} 41. Rd8 {[%clk 0:00:58]}  Re8 {[%clk 0:00:05]} 42. Rd7 {[%clk 0:00:59]}  Rh8 {[%clk 0:00:05]} 43. f4 {[%clk 0:00:59]}  Nh6+ {[%clk 0:00:03]} 44. Kf3 {[%clk 0:00:59]}  Ne4 {[%clk 0:00:03]} 45. Rc7 {[%clk 0:00:58]}  Rd8 {[%clk 0:00:03]} 46. c4 {[%clk 0:00:57]} 1-0


[Site "https://www.chess.com"]

[Event "Titled Tuesday Blitz January 10 Early 2023"]
[White "Sourath Biswas"]
[Black "Manukian, Artak"]
[WhiteFideId "35091484"]
[BlackFideId "13301373"]
[WhiteElo "2281"]
[BlackElo "2196"]
[Result "1-0"]
[Round "10"]
[TimeControl "180+2"]
[Date "2023.01.10"]
[WhiteClock "0:00:23"]
[BlackClock "0:01:12"]

1. d4 {[%clk 0:02:37]}  d5 {[%clk 0:02:59]} 2. Bf4 {[%clk 0:02:35]}  Nf6 {[%clk 0:02:58]} 3. e3 {[%clk 0:02:34]}  Bg4 {[%clk 0:02:58]} 4. Qd3 {[%clk 0:02:32]}  c6 {[%clk 0:02:57]} 5. Qb3 {[%clk 0:02:32]}  Qb6 {[%clk 0:02:56]} 6. c4 {[%clk 0:02:32]}  e6 {[%clk 0:02:52]} 7. c5 {[%clk 0:02:32]}  Qxb3 {[%clk 0:02:52]} 8. axb3 {[%clk 0:02:33]}  Nh5 {[%clk 0:02:48]} 9. Bc7 {[%clk 0:02:21]}  Kd7 {[%clk 0:02:44]} 10. Bxb8 {[%clk 0:02:21]}  Rxb8 {[%clk 0:02:44]} 11. Nc3 {[%clk 0:02:21]}  a6 {[%clk 0:02:42]} 12. h3 {[%clk 0:02:21]}  Bf5 {[%clk 0:02:39]} 13. g4 {[%clk 0:02:21]}  Bg6 {[%clk 0:02:39]} 14. gxh5 {[%clk 0:02:21]}  Bxh5 {[%clk 0:02:40]} 15. Nge2 {[%clk 0:02:21]}  f5 {[%clk 0:02:39]} 16. Nf4 {[%clk 0:02:21]}  Bf7 {[%clk 0:02:39]} 17. Nd3 {[%clk 0:02:21]}  g5 {[%clk 0:02:36]} 18. f4 {[%clk 0:02:21]}  h6 {[%clk 0:02:33]} 19. Ne5+ {[%clk 0:02:21]}  Ke8 {[%clk 0:02:32]} 20. Be2 {[%clk 0:02:12]}  Be7 {[%clk 0:02:31]} 21. Kd2 {[%clk 0:02:02]}  Rg8 {[%clk 0:02:31]} 22. Rag1 {[%clk 0:02:02]}  Bf6 {[%clk 0:02:23]} 23. Na4 {[%clk 0:01:54]}  Ke7 {[%clk 0:02:21]} 24. Nb6 {[%clk 0:01:51]}  Rbd8 {[%clk 0:02:17]} 25. b4 {[%clk 0:01:38]}  Rg7 {[%clk 0:02:15]} 26. Kc3 {[%clk 0:01:05]}  Rdg8 {[%clk 0:02:10]} 27. Nbd7 {[%clk 0:01:02]}  gxf4 {[%clk 0:02:09]} 28. Rxg7 {[%clk 0:00:55]}  Rxg7 {[%clk 0:02:10]} 29. exf4 {[%clk 0:00:56]}  Bh4 {[%clk 0:02:01]} 30. Nxf7 {[%clk 0:00:52]}  Kxf7 {[%clk 0:01:59]} 31. Ne5+ {[%clk 0:00:51]}  Kf6 {[%clk 0:01:56]} 32. Rf1 {[%clk 0:00:40]}  Rg2 {[%clk 0:01:53]} 33. Bd3 {[%clk 0:00:38]}  Rh2 {[%clk 0:01:44]} 34. Nf3 {[%clk 0:00:33]}  Rxh3 {[%clk 0:01:43]} 35. Nxh4 {[%clk 0:00:32]}  Rxh4 {[%clk 0:01:44]} 36. Kd2 {[%clk 0:00:30]}  h5 {[%clk 0:01:42]} 37. Ke3 {[%clk 0:00:29]}  Rh3+ {[%clk 0:01:43]} 38. Rf3 {[%clk 0:00:29]}  Rh2 {[%clk 0:01:43]} 39. Be2 {[%clk 0:00:24]}  h4 {[%clk 0:01:42]} 40. Rf2 {[%clk 0:00:24]}  Rh3+ {[%clk 0:01:39]} 41. Bf3 {[%clk 0:00:24]}  Rg3 {[%clk 0:01:22]} 42. Rg2 {[%clk 0:00:21]}  Rxg2 {[%clk 0:01:09]} 43. Bxg2 {[%clk 0:00:21]}  Ke7 {[%clk 0:01:10]} 44. Bf3 {[%clk 0:00:20]}  Kd7 {[%clk 0:01:11]} 45. Kf2 {[%clk 0:00:21]}  Kc7 {[%clk 0:01:11]} 46. Kg2 {[%clk 0:00:22]}  b6 {[%clk 0:01:11]} 47. Kh3 {[%clk 0:00:22]}  bxc5 {[%clk 0:01:11]} 48. bxc5 {[%clk 0:00:23]}  a5 {[%clk 0:01:11]} 49. Be2 {[%clk 0:00:22]}  Kb7 {[%clk 0:01:11]} 50. Kxh4 {[%clk 0:00:23]}  a4 {[%clk 0:01:12]} 51. Kg5 {[%clk 0:00:23]} 1-0


[Site "https://www.chess.com"]

[Event "Titled Tuesday Blitz January 10 Early 2023"]
[White "Fiorito, Joaquin"]
[Black "Sanchez, Robert"]
[WhiteFideId "180173"]
[BlackFideId "2034360"]
[WhiteElo "2405"]
[BlackElo "1966"]
[Result "0-1"]
[Round "10"]
[TimeControl "180+2"]
[Date "2023.01.10"]
[WhiteClock "0:00:06"]
[BlackClock "0:00:04"]

1. d4 {[%clk 0:03:00]}  Nf6 {[%clk 0:02:59]} 2. Nc3 {[%clk 0:03:01]}  e6 {[%clk 0:03:00]} 3. Bf4 {[%clk 0:03:00]}  d5 {[%clk 0:02:59]} 4. Nb5 {[%clk 0:03:00]}  Na6 {[%clk 0:02:59]} 5. e3 {[%clk 0:03:00]}  c6 {[%clk 0:02:57]} 6. Nc3 {[%clk 0:03:00]}  Bb4 {[%clk 0:02:55]} 7. Bxa6 {[%clk 0:02:59]}  bxa6 {[%clk 0:02:56]} 8. Nf3 {[%clk 0:02:59]}  Ne4 {[%clk 0:02:56]} 9. O-O {[%clk 0:02:59]}  Nxc3 {[%clk 0:02:47]} 10. bxc3 {[%clk 0:02:59]}  Bxc3 {[%clk 0:02:48]} 11. Rb1 {[%clk 0:03:00]}  O-O {[%clk 0:02:46]} 12. Ne5 {[%clk 0:02:58]}  c5 {[%clk 0:02:35]} 13. Qd3 {[%clk 0:02:42]}  Bb4 {[%clk 0:02:06]} 14. c3 {[%clk 0:00:45]}  c4 {[%clk 0:02:00]} 15. Nxc4 {[%clk 0:00:40]}  dxc4 {[%clk 0:02:00]} 16. Qe4 {[%clk 0:00:41]}  Qd5 {[%clk 0:01:53]} 17. Qxd5 {[%clk 0:00:41]}  exd5 {[%clk 0:01:53]} 18. Rxb4 {[%clk 0:00:41]}  h6 {[%clk 0:01:32]} 19. f3 {[%clk 0:00:37]}  Re8 {[%clk 0:01:30]} 20. Rfb1 {[%clk 0:00:35]}  Bf5 {[%clk 0:01:25]} 21. Re1 {[%clk 0:00:26]}  g5 {[%clk 0:01:21]} 22. Be5 {[%clk 0:00:25]}  Re6 {[%clk 0:01:20]} 23. Kf2 {[%clk 0:00:21]}  f6 {[%clk 0:01:17]} 24. Bg3 {[%clk 0:00:20]}  h5 {[%clk 0:01:12]} 25. Bc7 {[%clk 0:00:19]}  Rc8 {[%clk 0:01:04]} 26. Ba5 {[%clk 0:00:16]}  Re7 {[%clk 0:00:53]} 27. h3 {[%clk 0:00:15]}  h4 {[%clk 0:00:52]} 28. Rb2 {[%clk 0:00:12]}  Bd3 {[%clk 0:00:50]} 29. Rb4 {[%clk 0:00:09]}  Rce8 {[%clk 0:00:49]} 30. Ra4 {[%clk 0:00:08]}  f5 {[%clk 0:00:49]} 31. Bb4 {[%clk 0:00:08]}  Re6 {[%clk 0:00:48]} 32. Ra5 {[%clk 0:00:08]}  Rd8 {[%clk 0:00:32]} 33. Rc5 {[%clk 0:00:08]}  Kf7 {[%clk 0:00:32]} 34. Ba5 {[%clk 0:00:07]}  Rde8 {[%clk 0:00:31]} 35. Bb4 {[%clk 0:00:05]}  f4 {[%clk 0:00:26]} 36. Rxd5 {[%clk 0:00:05]}  Rxe3 {[%clk 0:00:25]} 37. Rxe3 {[%clk 0:00:05]}  Rxe3 {[%clk 0:00:26]} 38. Rxg5 {[%clk 0:00:05]}  Re2+ {[%clk 0:00:22]} 39. Kg1 {[%clk 0:00:06]}  Rxa2 {[%clk 0:00:21]} 40. Rg4 {[%clk 0:00:06]}  a5 {[%clk 0:00:14]} 41. Rxf4+ {[%clk 0:00:06]}  Ke6 {[%clk 0:00:14]} 42. Bc5 {[%clk 0:00:07]}  a4 {[%clk 0:00:12]} 43. Rf8 {[%clk 0:00:06]}  a3 {[%clk 0:00:12]} 44. Re8+ {[%clk 0:00:06]}  Kd7 {[%clk 0:00:11]} 45. Re1 {[%clk 0:00:07]}  Rc2 {[%clk 0:00:06]} 46. Bxa3 {[%clk 0:00:06]}  Rxc3 {[%clk 0:00:07]} 47. Bc5 {[%clk 0:00:07]}  a5 {[%clk 0:00:06]} 48. Ra1 {[%clk 0:00:06]}  Rb3 {[%clk 0:00:03]} 49. Kf2 {[%clk 0:00:05]}  Rb2+ {[%clk 0:00:03]} 50. Ke3 {[%clk 0:00:06]}  Rxg2 {[%clk 0:00:03]} 51. Rxa5 {[%clk 0:00:06]}  Ke6 {[%clk 0:00:04]} 52. Ra6+ {[%clk 0:00:06]}  Kf5 {[%clk 0:00:04]} 53. Be7 {[%clk 0:00:06]}  Re2# {[%clk 0:00:04]} 0-1


[Site "https://www.chess.com"]